Cogmind - Beta 16 @@@ ROGUE MODE // 2025.10.30 @ 23:52:24 Player: Reflectatory Result: Destroyed by exploding Fusion Modulator Performance ------------- Evolutions (4) 2000 Regions Visited (4) 800 Robots Destroyed (12) 60 Value Destroyed (593) 593 Prototype IDs (6) 120 Alien Tech Used (0) 0 Bonus (800) 800 TOTAL SCORE: 4373 Bonus ------- Registered with UFD 300 Met Optimus in HQ 500 Cogmind --------- Core Integrity 0/850 Matter 300/300 Energy 47/100 System Corruption 1% Temperature Cool (12) Movement Core (50) Location -6/Factory Parts ------- > --- POWER (2) -------- (None) > --- PROPULSION (4) --- (None) > --- UTILITY (7) ------ Advanced Visual Processing Unit Hacking Suite > --- WEAPON (2) ------- (None) > --- INVENTORY (5) ---- Improved EM Pulse Cannon Dirty Datajack (20) Improved Datajack Heavy Mace Chainsword Peak State ------------ > --- POWER ------------ Light Deuterium Engine Light Angular Momentum Engine > --- PROPULSION ------- Light Treads Light Treads Improved Treads Advanced Treads > --- UTILITY ---------- Deep Structural Scanner Advanced Visual Processing Unit Advanced Sensor Array Kinecellerator Hardened Medium Armor Plating Improved Medium Armor Plating Hacking Suite > --- WEAPON ----------- Power Sword Power Sword > --- INVENTORY -------- Improved EM Pulse Cannon Dirty Datajack Improved Datajack Heavy Mace Chainsword [Rating: 53] Favorites ----------- Power Light Deuterium Engine Engine Light Deuterium Engine Propulsion Wheel Treads Advanced Treads Leg Carbon-fiber Leg Wheel Wheel Hover Unit Gravmag System Utility Hardened Medium Armor Plating Device Deep Structural Scanner Processor Advanced Visual Processing Unit Hackware Hacking Suite Protection Hardened Medium Armor Plating Weapon Assault Rifle Energy Cannon Improved EM Pulse Cannon Ballistic Gun Assault Rifle Slashing Weapon Power Sword Build | -11 -10 -10 -8 -6 ------- Run | Yrd Mat Sub Scr Fac Slots Evolved 8 | . . . . 8 Power 1 | . . . . 1 Propulsion 2 | . . . . 2 Utility 5 | . . . . 5 Weapon . | . . . . . Parts Attached 31 | 5 1 2 8 15 Power 5 | 1 . . 3 1 Engine 5 | 1 . . 3 1 Core . | . . . . . Reactor . | . . . . . Propulsion 10 | 2 . . 3 5 Treads 6 | . . . 3 3 Leg 1 | . . . . 1 Wheel 2 | 2 . . . . Hover 1 | . . . . 1 Flight . | . . . . . Utility 9 | . 1 1 2 5 Device 5 | . 1 1 1 2 Storage . | . . . . . Processor 1 | . . . . 1 Hackware 1 | . . . . 1 Protection 2 | . . . 1 1 Artifact . | . . . . . Weapon 7 | 2 . 1 . 4 Energy Gun . | . . . . . Energy Cannon 1 | . . . . 1 Ballistic Gun 3 | 2 . 1 . . Ballistic Cannon . | . . . . . Launcher . | . . . . . Special Weapon . | . . . . . Impact Weapon . | . . . . . Slashing Weapon 3 | . . . . 3 Piercing Weapon . | . . . . . Special Melee Weapon . | . . . . . Unidentified Prototypes . | . . . . . Parts Lost 15 | . . . . 15 Power 2 | . . . . 2 Propulsion 6 | . . . . 6 Utility 5 | . . . . 5 Weapon 2 | . . . . 2 Highest Loss Streak 14 | . . . . 14 To Critical Strikes . | . . . . . Average Backups 4 | 1 4 5 5 4 Power . | . 1 1 1 . Propulsion 1 | . 2 2 1 . Utility . | . . . . . Weapon 1 | . 1 1 . 2 Tool/Special . | . . . . . Unused Backups 6 | . . 1 1 4 Power . | . . . . . Propulsion . | . . . . . Utility . | . . . . . Weapon 4 | . . 1 1 2 Tool/Special 2 | . . . . 2 Average Slot Usage (%) 93 | . 71 98 100 86 Engine 13 | . 14 14 14 12 Treads 11 | . . . 9 21 Wheel 13 | . 28 28 18 . Device 16 | . . 26 14 17 Processor 2 | . . . . 5 Hackware 1 | . . . . 5 Protection 9 | . . . 13 8 Ballistic Gun 19 | . 28 28 28 3 Slashing Weapon 2 | . . . . 6 Peak Build Rating 53 | 5 6 11 19 53 Average Rating 22 | 4 5 9 13 42 On Entrance 8 | . 5 6 11 19 Avg Prop Armor Cover (%) 7 | . . . . 7 Naked Turns . | . . . . . Heaviest Build 41 | 6 7 10 19 41 Greatest Support 85 | 20 20 20 45 85 Greatest Overweight (x) 2 | . . . . 2 Average Overweight (x) . | . . . . . Largest Inventory Capacity 5 | 5 5 5 5 5 Average Capacity 5 | 5 5 5 5 5 Most Carried 5 | 4 5 5 5 5 Average Carried 4 | 1 4 5 5 4 Final Capacity 5 | 5 5 5 5 5 Final Carried 5 | 4 5 5 5 5 Class Distribution -------------------- 69% | Mutant 30% | Derelict-Mutant Dominant Class ---------------- Mutant | -10/Materials Mutant | -10/Subcaves Mutant | -8/Scraptown Derelict-Mutant | -6/Factory Resources | -11 -10 -10 -8 -6 ----------- Run | Yrd Mat Sub Scr Fac Matter Collected 531 | 235 13 62 80 141 Remotely . | . . . . . Salvage Created 644 | . 13 34 . 597 Parts 35 | . 2 5 . 28 Haulers Intercepted . | . . . . . Recyclers Shooed . | . . . . . Parts Field Recycled . | . . . . . Retrieved Matter . | . . . . . Parts Self-Destructed 20 | . . 20 . . Prevented . | . . . . . Parts Restored . | . . . . . Kills | -11 -10 -10 -8 -6 ------- Run | Yrd Mat Sub Scr Fac Combat Hostiles Destroyed 11 | . . 1 . 10 Melee 10 | . . . . 10 Guns 1 | . . 1 . . Classes Destroyed 6 | . 1 1 . 4 Tunneler 1 | . 1 . . . Grunt 6 | . . . . 6 Sentry 1 | . . . . 1 Hunter 2 | . . . . 2 Programmer 1 | . . . . 1 Subdweller 1 | . . 1 . . Best Kill Streak 5 | . 1 1 . 5 Combat Bots Only 5 | . . 1 . 5 Max Kills in Single Turn 1 | . 1 1 . 1 Gunslinging . | . . . . . Exploded . | . . . . . Melee 1 | . . . . 1 Uniques/NPCs Destroyed . | . . . . . Combat | -11 -10 -10 -8 -6 -------- Run | Yrd Mat Sub Scr Fac Hostile Shots Fired 204 | . . 1 . 203 Missed 49 | . . . . 49 Hits 155 | . . 1 . 154 Projectile 155 | . . 1 . 154 Critical Strikes 3 | . . . . 3 Damage Taken 2601 | . . 19 . 2582 Core 889 | . . . . 889 Absorbed by Shields . | . . . . . Core Remaining (%) 100 | 100 . . 100 . Volleys Fired 9 | . 2 5 . 2 Largest 2 | . 2 2 . 2 Hottest 69 | . 40 43 . 69 Shots Fired 17 | . 4 10 . 3 Gun 16 | . 4 10 . 2 Cannon 1 | . . . . 1 Launcher . | . . . . . Special . | . . . . . Kinetic 16 | . 4 10 . 2 Thermal . | . . . . . Explosive . | . . . . . Electromagnetic 1 | . . . . 1 Robot Hit Streak 3 | . 3 3 . . Robot Miss Streak 3 | . . 3 . 2 Penetration Max . | . . . . . Secondary Targets . | . . . . . Shots Hit Robots 43 | . 3 5 . 35 Core Hits 23 | . 2 3 . 18 Critical Kills . | . . . . . Critical Parts Destroyed . | . . . . . Critical Strikes 6 | . . . . 6 Sever 6 | . . . . 6 Melee Attacks 56 | . . . . 56 Impact . | . . . . . Slashing 56 | . . . . 56 Piercing . | . . . . . Sneak Attacks . | . . . . . Combat Hostiles . | . . . . . Follow-up Attacks 1 | . . . . 1 Damage Inflicted 1452 | . 30 50 . 1372 Guns 80 | . 30 50 . . Cannons . | . . . . . Explosions . | . . . . . Melee 1372 | . . . . 1372 Ramming . | . . . . . Kinetic 80 | . 30 50 . . Thermal . | . . . . . Explosive . | . . . . . Electromagnetic . | . . . . . Impact . | . . . . . Slashing 1372 | . . . . 1372 Piercing . | . . . . . Highest Corruption 1 | . . . . 1 Average Corruption 1 | . . . . 1 Corruption Purged . | . . . . . Corruption Blocked . | . . . . . Overload Shots . | . . . . . Overflow Damage 25 | . . . . 25 Projectiles . | . . . . . Explosions . | . . . . . Melee 25 | . . . . 25 Knockbacks . | . . . . . Impact . | . . . . . Kinetic . | . . . . . Secondary . | . . . . . Self-Inflicted Damage . | . . . . . Shots . | . . . . . Rammed . | . . . . . Targets Rammed . | . . . . . Kicked . | . . . . . Crushed . | . . . . . Highest Temperature 28 | . . . . 28 Average Temperature 11 | . . . . 11 Received Heat Transfer 468 | . . 12 . 456 Siege Activations . | . . . . . Martial Activations . | . . . . . Shielding Activations . | . . . . . Robots Disrupted . | . . . . . Combat Hostiles . | . . . . . Robots Corrupted . | . . . . . Combat Hostiles . | . . . . . Parts Fried . | . . . . . Impact Corruptions . | . . . . . Robots Melted . | . . . . . Combat Hostiles . | . . . . . Parts Melted . | . . . . . Heat Transferred . | . . . . . Parts Sabotaged . | . . . . . Parts Stolen . | . . . . . Parts Stripped . | . . . . . Power Chain Reactions . | . . . . . Alert | -11 -10 -10 -8 -6 ------- Run | Yrd Mat Sub Scr Fac Maximum Alert Level . | . . . . . Low Security (%) 100 | 100 100 . . 100 Level 1 . | . . . . . Level 2 . | . . . . . Level 3 . | . . . . . Level 4 . | . . . . . Level 5 . | . . . . . High Security . | . . . . . Max Security . | . . . . . Peak Influence 99 | . 5 . . 99 Initial . | . . . . . Average 14 | . . . . 17 Influence Increases 372 | . 9 . . 363 Destroy 0b10 Robot/C 200 | . . . . 200 Destroy 0b10 Robot/NC 5 | . 5 . . . Destroy Leader 50 | . . . . 50 Successful Hack 4 | . 4 . . . Destroy Structure 8 | . . . . 8 Lose Combat Pursuer 105 | . . . . 105 Influence Decreases 292 | . 9 . . 283 Time Decay 142 | . 9 . . 133 Lost Part 150 | . . . . 150 Squads Dispatched 7 | . . . . 7 Investigation 3 | . . . . 3 Extermination 1 | . . . . 1 Reinforcement 3 | . . . . 3 Assault . | . . . . . Garrison . | . . . . . Intercept . | . . . . . Searches Triggered . | . . . . . Construction Impeded . | . . . . . Haulers Reinforced . | . . . . . Active Scanning Responses . | . . . . . Cargo Convoy Interrupts . | . . . . . Stealth | -11 -10 -10 -8 -6 --------- Run | Yrd Mat Sub Scr Fac Distress Signals 1 | . . . . 1 Communications Jammed . | . . . . . Distress Signals . | . . . . . Times Spotted 28 | . 1 6 . 21 Peak Tracking Total 6 | . 1 3 . 6 Tactical Retreats 5 | . . . . 5 Traps | -11 -10 -10 -8 -6 ------- Run | Yrd Mat Sub Scr Fac Traps Triggered . | . . . . . Indirectly . | . . . . . Trap Hack Attempts . | . . . . . Triggered . | . . . . . Disarmed . | . . . . . Reprogrammed . | . . . . . Reused . | . . . . . Traps Extracted . | . . . . . Installed . | . . . . . Triggered . | . . . . . Machines | -11 -10 -10 -8 -6 ---------- Run | Yrd Mat Sub Scr Fac Machines Disabled . | . . . . . Max in Single Turn . | . . . . . Machines Repaired . | . . . . . Machines Dismantled . | . . . . . Machines Sabotaged . | . . . . . Overloaded Fab Kills . | . . . . . Hacking | -11 -10 -10 -8 -6 --------- Run | Yrd Mat Sub Scr Fac Machines Accessed 12 | . 2 . 4 6 Terminals 4 | . 2 . . 2 Fabricators . | . . . . . Repair Stations . | . . . . . Recycling Units 3 | . . . . 3 Scanalyzers 1 | . . . . 1 Garrison Access . | . . . . . Total Hacks 48 | . 7 . 26 15 Successful 34 | . 4 . 26 4 Failed 14 | . 3 . . 11 Catastrophic 2 | . . . . 2 Database Lockouts . | . . . . . Manual 12 | . 2 . . 10 Terminals 13 | . 7 . . 6 Fabricators . | . . . . . Repair Stations . | . . . . . Recycling Units 4 | . . . . 4 Scanalyzers 5 | . . . . 5 Garrison Access . | . . . . . Terminal Hacks 28 | . 2 . 26 . Record 25 | . . . 25 . Alert Level 1 | . 1 . . . Zone Layout 1 | . 1 . . . Proto ID Catalog 1 | . . . 1 . Fabricator Hacks . | . . . . . Repair Station Hacks . | . . . . . Recycling Unit Hacks . | . . . . . Scanalyzer 2 | . . . . 2 Retrieve Study 2 | . . . . 2 Garrison Access Hacks . | . . . . . Unauthorized Hacks 4 | . 2 . . 2 Terminals 2 | . 2 . . . Botnet 2 | . 2 . . . Fabricators . | . . . . . Repair Stations . | . . . . . Recycling Units 2 | . . . . 2 Fedlink 2 | . . . . 2 Scanalyzers . | . . . . . Garrison Access . | . . . . . Data Cores Recovered . | . . . . . Used . | . . . . . Hacking Detections 6 | . 2 . . 4 Full Trace Events 1 | . . . . 1 Feedback Events . | . . . . . Feedback Blocked . | . . . . . Robot Schematics Acquired . | . . . . . Robots Built . | . . . . . Authchips . | . . . . . Time . | . . . . . Total Robot Build Rating . | . . . . . Part Schematics Acquired . | . . . . . Parts Built . | . . . . . Authchips . | . . . . . Time . | . . . . . Total Part Build Rating . | . . . . . Part Studies Acquired 2 | . . . . 2 Parts Repaired . | . . . . . Time . | . . . . . Parts Recycled . | . . . . . Recycled Matter . | . . . . . Retrieved Matter . | . . . . . Retrieved Components . | . . . . . Parts Scanalyzed . | . . . . . Part Schematics Acquired . | . . . . . Parts Damaged . | . . . . . Bothacking | -11 -10 -10 -8 -6 ------------ Run | Yrd Mat Sub Scr Fac Used RIF Installer . | . . . . . Robots Hacked . | . . . . . Non-combat . | . . . . . Combat . | . . . . . Robot Hacks Applied . | . . . . . Relay Couplers Released . | . . . . . Fabnet Peak Effective % . | . . . . . Robots Rewired . | . . . . . Allies Hacked . | . . . . . Hacks Repelled . | . . . . . Allies | -11 -10 -10 -8 -6 -------- Run | Yrd Mat Sub Scr Fac Total Allies . | . . . . . Largest Group . | . . . . . Highest-Rated Group . | . . . . . Highest-Rated Ally . | . . . . . Total Orders . | . . . . . Ally Attacks . | . . . . . Total Damage . | . . . . . Kills . | . . . . . Allies Corrupted . | . . . . . Allies Melted . | . . . . . Intel | -11 -10 -10 -8 -6 ------- Run | Yrd Mat Sub Scr Fac Active Infowar (turns) 2086 | . 3 267 1075 741 Optics 740 | . . . . 740 Sensors 683 | . . . . 683 Structural 1186 | . . . 467 719 Seismic 878 | . 3 267 608 . Robot Analysis Total . | . . . . . Derelict Logs Recovered . | . . . . . Drone Launches . | . . . . . Drone Recoveries . | . . . . . Exploration | -11 -10 -10 -8 -6 ------------- Run | Yrd Mat Sub Scr Fac Turns Passed 2227 | 38 106 267 1075 741 Spaces Moved 1715 | 34 64 186 1108 323 Core 4 | 1 . . . 3 Treads 560 | . . . 240 320 Legs . | . . . . . Wheels 1151 | 33 64 186 868 . Hover . | . . . . . Flight . | . . . . . Fastest Speed 50 | 50 80 80 80 50 Average Speed 104 | 79 80 80 95 154 Slowest Speed 160 | 80 80 80 160 156 Overloaded Moves . | . . . . . Propulsion Burnouts . | . . . . . Robots Hopped . | . . . . . Potential Cave-ins . | . . . . . Cave-ins Triggered . | . . . . . Exploration Rate (%) 21 | 3 10 17 69 9 Regions Visited 4 Branch Regions 2 Pre-discovered Areas 6 | . . . 5 1 Known Exits Taken 1 | . . . 1 . Unknown Exits Taken 3 | 1 1 1 . . Scrap Searched 4 | . . . 4 . Spaces Dug 8 | . . . . 8 Terrain Destroyed 8 | . . . . 8 Melee 8 | . . . . 8 Projectile . | . . . . . AOE . | . . . . . Terrain Rammed . | . . . . . Walls Destroyed . | . . . . . Machines Disabled . | . . . . . Actions | -11 -10 -10 -8 -6 --------- Run | Yrd Mat Sub Scr Fac Total 2050 | 42 114 295 1123 476 Wait 222 | . 47 100 2 73 Move 1711 | 33 63 185 1107 323 Hop . | . . . . . Pick Up 12 | 4 1 1 2 4 Fast Attach 14 | 5 1 1 . 7 Attach 3 | . . . . 3 Detach . | . . . . . Swap 15 | . . 1 8 6 Drop 10 | . . 2 4 4 Fire 9 | . 2 5 . 2 Melee 54 | . . . . 54 Ram . | . . . . . Kick . | . . . . . Crush . | . . . . . Escape Stasis . | . . . . . Rewire . | . . . . . Trap . | . . . . . Miscellaneous . | . . . . . Route ------- -11/Scrapyard -10/Materials (discovered 2 exits: [Min] / [*Sub]) -10/Subcaves -8/Scraptown (discovered 2 exits: *Fac x2) -6/Factory History --------- Turn | Location | Event 19 | -11/Scrapyard | Discovered new exit (range 15) 39 | -11/Scrapyard | Entered Materials 40 | -10/Materials | Met a group of wandering Federalists 49 | -10/Materials | Discovered new exit (range 12) 71 | -10/Materials | Discovered new exit (range 5) 145 | -10/Materials | Entered Subcaves 145 | -10/Subcaves | Accompanied by 5 allies 146 | -10/Subcaves | Continued accompanying wandering Federalists (6) 146 | -10/Subcaves | Approached by a straggling Scientist 168 | -10/Subcaves | A swath of the cavern ceiling suddenly collapsed 182 | -10/Subcaves | A swath of the cavern ceiling suddenly collapsed 213 | -10/Subcaves | Lost 3 allies 303 | -10/Subcaves | Build established: Mutant 313 | -10/Subcaves | Shifting Twisted Machinery released Sub. Machine Gun 348 | -10/Subcaves | Shifting Twisted Machinery released Flamer 401 | -10/Subcaves | Wandering Federalist uncovered a shortcut to Scraptown 412 | -10/Subcaves | Entered Scraptown 513 | -8/Scraptown | Visited UFD Registry 513 | -8/Scraptown | Registered with UFD as "Monoguard" 515 | -8/Scraptown | Heard Great Nut preacher, LISTEN AND RECITE! 524 | -8/Scraptown | Visited CPS Storage 534 | -8/Scraptown | Visited Assassins FH 539 | -8/Scraptown | Visited Symbiants 654 | -8/Scraptown | Discovered new exit (range 13) 728 | -8/Scraptown | Visited SPCMW 809 | -8/Scraptown | Visited Chapter 10 841 | -8/Scraptown | Visited Botcube Research 865 | -8/Scraptown | Visited Science Guys 898 | -8/Scraptown | Visited Abandonware Association 922 | -8/Scraptown | Visited Cartography Club 1013 | -8/Scraptown | Learned location of Zion (-6) 1013 | -8/Scraptown | Learned location of Archives (-4) 1013 | -8/Scraptown | Learned location of Armory (-4) 1013 | -8/Scraptown | Learned location of Testing (-2) 1013 | -8/Scraptown | Learned 8 Materials zone layouts 1013 | -8/Scraptown | Learned 16 Materials zone layouts 1013 | -8/Scraptown | Learned 8 Factory zone layouts 1013 | -8/Scraptown | Learned 12 Research zone layouts 1013 | -8/Scraptown | Learned 8 Lower Caves zone layouts 1013 | -8/Scraptown | Learned 20 Lower Caves zone layouts 1013 | -8/Scraptown | Learned 4 Hub_04(d) zone layouts 1013 | -8/Scraptown | Learned Materials emergency access door positions 1013 | -8/Scraptown | Learned location of 1 exit from Lower Caves 1013 | -8/Scraptown | Learned location of 1 exit from Upper Caves 1013 | -8/Scraptown | Identified exit to Factory 1020 | -8/Scraptown | Found Deep Structural Scanner 1106 | -8/Scraptown | Visited DA-N13 Charitable Foundation 1113 | -8/Scraptown | Found DCF Scrap (28 items) 1174 | -8/Scraptown | Visited LU-1G1's Boring Crew 1235 | -8/Scraptown | Visited Junk Repository 1279 | -8/Scraptown | Visited Derelict Rescue Squad 1398 | -8/Scraptown | Met Optimus 1398 | -8/Scraptown | Accepted into 0bPrime 1487 | -8/Scraptown | Entered Factory 1487 | -6/Factory | Evolved 8 slots: Power x1, Propulsion x2, Utility x5 1680 | -6/Factory | Loaded intel: 8 recycling unit locations 1791 | -6/Factory | Build established: Derelict-Mutant 1862 | -6/Factory | Learned location of Protoforge (-2) 2198 | -6/Factory | Core integrity fell below 50% 2212 | -6/Factory | Core integrity fell below 20% 2228 | -6/Factory | Destroyed by exploding Fusion Modulator Last Messages --------------- Penetrated by Slug. K-01 Serf cleans the Fusion Modulator. Penetrated by Slug. H-66 Slayer destroyed. K-01 Serf collects debris. Penetrated by Slug. Gravmag System destroyed. K-01 Serf collects debris. Penetrated by Slug. Slug penetrates Terminal. Power Sword destroyed. K-01 Serf collects debris. Penetrated by Slug. K-01 Serf collects debris. H-66 Slayer destroyed. K-01 Serf collects debris. Fusion Modulator explodes. K-01 Serf destroyed. Terminal disabled. Power Sword destroyed. Map ----- +----------------------------------------------------+ | ?????????????????????????????#### " " " ! # | | ?????????????????????????????#### " " " ![ # | | ?????????????????????????????#### " " " # | | ?????????????????????????????#### " " " # | | ?????????????????????????????#### # | | ?????????????????????????????################# | | ?????########## ###### """"" # | | ?????########## ###### ""T"" # | | ?????########## ###### # | | ?????################+########### """ """ # | | ????? ### """ """ # | | ????? ### """ """ + | | ?????? ### # ? | | ?????? ### ! """ """ # ? | | ?????? ### """ """ # ? | | ????????????##+########## ### """ """ # ? | | ???????????? ###### ### # ? | | ???????????? """ ###### ### # ? | | ????????????"" "G" ###### ################ | | ?????????????????????#### u | | ?????????????????????#### k | | ?????????????????????####k[ A o | | ?????????????????????####!^* | | ?????????????????????####%[[* | | # ################[=! """ """ """ """ | | #### ################@ """ """ """ ""???? | | #### ################% """ """ """ ""???? | | #### ################**%= ???? | | #### [% =k% ???? | | ####+#+###################"""T" "#########+###???? | | ###################### ???? | | ###################### ???? | | ???? ###################### ???? | | ??????????????????????############## ????????????? | | ?????????????????????????????????????????????????? | | ?????????????????????????????????????????????????? | | ?????????????????????????????????????????????????? | | ?????????????????????????????????????????????????? | | ?????????????????????????????????????????????????? | | ?????????????????????????????????????????????????? | | ?????????????????????????????????????????????????? | | ?????????????????????????????????????????????????? | | ?????????????????????????????????????????????????? | | ?????????????????????????????????????????????????? | | ?????????????????????????????????????????????????? | | ?????????????????????????????????????????????????? | | ?????????????????????????????????????????????????? | | ?????????????????????????????????????????????????? | | ?????????????????????????????????????????????????? | | ?????????????????????????????????????????????????? | +----------------------------------------------------+ Best States ------------- Heat Dissipation 39 Energy Generation 27 Energy Capacity 250 Matter Stores 300 Matter Capacity 300 Sight Range 20 Robot Scan Range 16 Terrain Scan Density 10 Armor Coverage 450 Evasion (%) 45 Recoil Reduction 4 Offensive Hacking 10 Item Schematics ----------------- None Robot Schematics ------------------ None Fabricated ------------ Nothing Repaired ---------- Nothing Studied --------- Adv. Treads | -6/Factory | Hacked Chainsword | -6/Factory | Hacked Alien Tech Used ----------------- None Achievements -------------- None Challenges ------------ None Game ------ Seed ArcsightRegenerativeJetlance Manual? 0 Play Time 00:20:23 Cumulative 48.3 hours Start 2025.10.30 @ 23:32:37 End 2025.10.30 @ 23:52:24 Sessions 1 Manual Loads 0 Difficulty Rogue Special Mode None Game No. 53 Rogue 53 Adventurer 0 Explorer 0 Win Type - Total 1 Types 1/0/0/0/0/0/0/0/0/0 Lore% 46 Gallery% 42 Achievement% 30 Wizard Run 0 Options --------- Layout 1 ASCII 0 Keyboard 0 Movement Numpad Keybinds 0 Fullscreen 1 Font 32/SmallcapsGlow Map View 50x35 Zoom Use 0% Tactical HUD 0 Map Filters NONE Filters NONE Steam 1 RUN: d8692315-9952-4abc-91f4-8bb274f343d0